bitfinex-derivatives/quotes_SOLF0:USTF0_20260118
["timestamp","ask_amount","ask_price","bid_price","bid_amount"]
[1768770773391,10.5763983,142.62,142.58,6.3142]
[1768770773995,1.76446082,142.63,142.59,6.3139]
[1768770775197,276.41164359,142.64,142.59,6.3139]
[1768770775397,278.17610441,142.64,142.6,6.3135]
[1768770776003,12.91610441,142.64,142.6,6.3135]
[1768770777701,11.15164359,142.66,142.6,11.04694898]
[1768770777907,1.76446082,142.67,142.6,11.04694898]
[1768770778499,1.76446082,142.67,142.63,17.35894898]
[1768770779208,11.15164359,142.68,142.63,17.35894898]
[1768770780706,11.15164359,142.7,142.64,11.04694898]
[1768770781006,12.91610441,142.7,142.64,11.04694898]
[1768770781607,12.91610441,142.7,142.65,6.3112]
[1768770786409,1.76446082,142.69,142.65,6.3112]
[1768770787206,1.76446082,142.69,142.65,17.35814898]
[1768770787399,11.15164359,142.72,142.65,17.35814898]
[1768770787605,1.76446082,142.7,142.65,17.35814898]
[1768770789712,12.91610441,142.7,142.65,6.3112]
[1768770798115,11.15164359,142.7,142.65,6.3112]
[1768770798315,12.91610441,142.7,142.65,6.3112]
[1768770799017,12.91357388,142.7,142.65,6.3112]
[1768770799817,11.15164359,142.7,142.65,6.3112]
[1768770800018,12.91357388,142.7,142.65,6.3112]
[1768770800719,1.76193029,142.71,142.66,17.35764898]
[1768770801819,12.91357388,142.71,142.66,17.35764898]
[1768770803323,11.15164359,142.71,142.66,17.35764898]
[1768770804513,526.83754517,142.73,142.67,16.84812453]
[1768770804719,1.76193029,142.72,142.67,16.84812453]
[1768770806224,526.83754517,142.73,142.67,16.84812453]
[1768770806424,528.59947546,142.73,142.67,16.84812453]
[1768770806725,1.76193029,142.74,142.68,10.53782453]
[1768770807514,11.97552916,142.74,142.68,10.53782453]
[1768770808822,11.97552916,142.72,142.67,6.3103]
[1768770811131,10.21359887,142.72,142.67,6.3103]
[1768770816735,1.76193029,142.73,142.68,10.53782453]
[1768770818237,10.21359887,142.74,142.68,10.53782453]
[1768770818439,1.76193029,142.73,142.68,10.53782453]
[1768770818937,10.21359887,142.74,142.68,10.53782453]
[1768770819127,1.76193029,142.73,142.68,10.53782453]
[1768770820342,12.09961068,142.73,142.68,10.53782453]
[1768770826831,12.09961068,142.73,142.66,10.53888471]
[1768770831934,18.40751068,142.73,142.66,10.53888471]
[1768770832134,10.33768039,142.72,142.66,10.53888471]
[1768770832545,16.64598039,142.72,142.66,10.53888471]
[1768770839949,10.33768039,142.72,142.66,10.53888471]
[1768770841950,10.33768039,142.72,142.66,16.84958471]
[1768770842747,10.33768039,142.72,142.67,6.3102]
[1768770842955,10.33768039,142.72,142.67,17.09015462]
[1768770848947,10.33768039,142.72,142.67,10.77995462]
[1768770850552,9.73590244,142.74,142.67,10.77995462]
[1768770850759,9.73590244,142.75,142.67,12.54188491]
[1768770851452,11.49783273,142.75,142.67,12.54188491]
[1768770851658,11.49783273,142.75,142.68,10.77995462]
[1768770852863,9.73590244,142.75,142.68,10.77995462]
[1768770853154,11.49783273,142.75,142.68,10.77995462]
[1768770855858,9.73590244,142.74,142.68,10.77995462]
[1768770857959,16.04330244,142.74,142.68,10.77995462]
[1768770858157,11.49783273,142.73,142.66,67.77995462]
[1768770859764,16.04420244,142.72,142.66,67.77995462]
[1768770859966,16.04420244,142.72,142.66,10.77995462]
[1768770860866,17.80568857,142.72,142.66,10.77995462]
[1768770864263,10.1624546,142.71,142.66,10.77995462]
[1768770865271,16.4711546,142.71,142.66,10.77995462]
[1768770866774,18.23314073,142.7,142.63,290.9636181]
[1768770866974,10.1624546,142.69,142.63,233.9636181]
[1768770867878,16.4720546,142.69,142.63,233.9636181]
[1768770868985,16.4720546,142.69,142.63,243.44216964]
[1768770870284,16.4720546,142.69,142.64,9.47855154]
[1768770870485,6.3096,142.69,142.64,9.47855154]
[1768770872988,16.4714546,142.71,142.64,9.47855154]
[1768770874586,6.309,142.71,142.66,9.47855154]
[1768770874786,16.4705546,142.73,142.66,9.47855154]
[1768770885097,10.22501401,142.72,142.66,9.47855154]
[1768770902106,6.3081,142.73,142.66,9.47855154]
[1768770902909,16.46242183,142.73,142.66,9.47855154]
[1768770904406,16.46152183,142.75,142.66,9.47855154]
[1768770904604,10.15432183,142.75,142.68,10.23338469]
[1768770908610,10.15432183,142.73,142.68,10.23338469]
[1768770908805,10.15432183,142.73,142.63,290.9636181]
[1768770908806,10.15432183,142.73,142.66,10.23338469]
[1768770909809,16.46212183,142.73,142.66,10.23338469]
[1768770910610,10.15432183,142.72,142.66,10.23338469]
[1768770910817,10.15432183,142.71,142.66,10.23338469]
[1768770915212,10.15432183,142.73,142.66,10.23338469]
[1768770918318,10.15432183,142.73,142.66,16.54418469]
[1768770918616,10.15432183,142.73,142.67,10.23338469]
[1768770930929,10.15432183,142.73,142.68,10.52357606]
[1768770932229,10.15432183,142.73,142.66,10.52357606]
[1768770933830,10.15432183,142.73,142.66,16.83437606]
[1768770934529,10.15432183,142.73,142.67,10.52357606]
[1768770942935,9.74385434,142.72,142.67,10.52357606]
[1768770944540,9.74385434,142.71,142.64,16.83849015]
[1768770944735,9.74385434,142.71,142.65,10.52689015]
[1768770955952,9.74385434,142.71,142.65,16.83799015]
[1768770961554,9.74385434,142.71,142.65,18.59893881]
[1768770967054,9.74385434,142.71,142.65,16.83799015]
[1768770968059,9.74385434,142.71,142.63,16.11408875]
[1768770968251,10.21800843,142.69,142.63,16.11408875]
[1768770971964,10.21800843,142.69,142.63,9.80228875]
[1768770988566,10.15180354,142.71,142.64,11.65957428]
[1768770988863,6.3085,142.72,142.66,11.65957428]
[1768770989372,16.46030354,142.72,142.66,11.65957428]
[1768771006890,16.46030354,142.72,142.66,9.89752498]
[1768771011094,5.18750347,142.71,142.66,9.89752498]
[1768771011293,16.46030354,142.72,142.66,9.89752498]
[1768771011483,5.18750347,142.71,142.66,9.89752498]
[1768771011794,10.15180354,142.72,142.66,9.89752498]
[1768771026918,10.15180354,142.72,142.66,16.20832498]
[1768771028620,10.15180354,142.72,142.67,10.44937962]
[1768771031921,10.15180354,142.72,142.67,16.75967962]
[1768771035521,10.15180354,142.72,142.67,6.3103]
[1768771035714,5.19561258,142.71,142.67,6.3103]
[1768771035920,11.91385284,142.72,142.67,6.3103]
[1768771036129,15.14937123,142.71,142.67,6.3103]
[1768771036326,9.95357353,142.71,142.67,6.3103]
[1768771037225,9.95357353,142.71,142.65,10.44937962]
[1768771037226,9.95357353,142.71,142.68,6.3099]
[1768771039920,9.95357353,142.71,142.65,16.76037962]
[1768771049941,9.95357353,142.71,142.66,6.3107]
[1768771051937,9.95357353,142.71,142.67,6.3103]
[1768771104776,9.95357353,142.71,142.65,16.76037962]
[1768771108081,9.95357353,142.71,142.66,6.3108]
[1768771140211,9.95357353,142.71,142.67,6.3104]
[1768771140411,8.06868172,142.74,142.67,6.3104]
[1768771140612,5.20932505,142.73,142.67,6.3104]
[1768771140907,5.20932505,142.72,142.67,6.3104]
[1768771141111,5.20932505,142.71,142.67,6.3104]
[1768771141309,6.3074,142.74,142.67,6.3104]
[1768771141509,5.20932343,142.73,142.67,6.3104]
[1768771141709,5.20932343,142.72,142.67,6.3104]
[1768771142009,5.20932343,142.71,142.67,6.3104]
[1768771142209,8.06868172,142.74,142.67,6.3104]
[1768771142404,10.63296029,142.72,142.67,6.3104]
[1768771142605,5.20930885,142.71,142.67,6.3104]
[1768771142814,10.63296029,142.72,142.67,6.3104]
[1768771143013,5.20930885,142.71,142.67,6.3104]
[1768771143220,10.63296029,142.72,142.67,6.3104]
[1768771143520,5.20929945,142.71,142.67,6.3104]
[1768771143710,10.63296029,142.72,142.67,6.3104]
[1768771143911,5.20929945,142.71,142.67,6.3104]
[1768771144210,10.63296029,142.72,142.67,6.3104]
[1768771144511,5.20929105,142.71,142.67,6.3104]
[1768771144710,10.63296029,142.72,142.67,6.3104]
[1768771144910,5.20929105,142.71,142.67,6.3104]
[1768771145119,10.63296029,142.72,142.67,6.3104]
[1768771145311,5.20928356,142.71,142.67,6.3104]
[1768771145511,10.63296029,142.72,142.67,6.3104]
[1768771145712,5.20928356,142.71,142.67,6.3104]
[1768771145917,10.63296029,142.72,142.67,6.3104]
[1768771146117,5.20928356,142.71,142.67,6.3104]
[1768771146417,10.63296029,142.72,142.67,6.3104]
[1768771146615,5.20927693,142.71,142.67,6.3104]
[1768771146918,10.63296029,142.72,142.67,6.3104]
[1768771147121,5.20927693,142.71,142.67,6.3104]
[1768771147316,10.63296029,142.72,142.67,6.3104]
[1768771147518,5.20926974,142.71,142.67,6.3104]
[1768771147818,10.63296029,142.72,142.67,6.3104]
[1768771148013,5.20927615,142.71,142.67,6.3104]
[1768771148215,10.63296029,142.72,142.67,6.3104]
[1768771148414,5.20927609,142.71,142.67,6.3104]
[1768771148616,10.63296029,142.72,142.67,6.3104]
[1768771148815,5.20927609,142.71,142.67,6.3104]
[1768771149114,10.63296029,142.72,142.67,6.3104]
[1768771149315,5.20927203,142.71,142.67,6.3104]
[1768771149516,10.63296029,142.72,142.67,6.3104]
[1768771149712,5.20927602,142.71,142.67,6.3104]
[1768771149916,10.63296029,142.72,142.67,6.3104]
[1768771150118,5.20927602,142.71,142.67,6.3104]
[1768771150317,10.63296029,142.72,142.67,6.3104]
[1768771150517,5.20941585,142.71,142.67,6.3104]
[1768771150716,10.63296029,142.72,142.67,6.3104]
[1768771150917,5.20941177,142.71,142.67,6.3104]
[1768771151118,10.63296029,142.72,142.67,6.3104]
[1768771151316,5.20940524,142.71,142.67,6.3104]
[1768771151521,10.63296029,142.72,142.67,6.3104]
[1768771151722,5.20940057,142.71,142.67,6.3104]
[1768771152019,10.63296029,142.72,142.67,6.3104]
[1768771152220,5.20939815,142.71,142.67,6.3104]
[1768771152422,10.63296029,142.72,142.67,6.3104]
[1768771152721,5.20938659,142.71,142.67,6.3104]
[1768771152909,10.63296029,142.72,142.67,6.3104]
[1768771153114,5.20938659,142.71,142.67,6.3104]
[1768771153323,10.63296029,142.72,142.67,6.3104]
[1768771153521,5.20937412,142.71,142.67,6.3104]
[1768771153716,10.63296029,142.72,142.67,6.3104]
[1768771153917,5.20937412,142.71,142.67,6.3104]
[1768771154117,10.63296029,142.72,142.67,6.3104]
[1768771154322,5.20936293,142.71,142.67,6.3104]
[1768771154524,10.63296029,142.72,142.67,6.3104]
[1768771154722,5.20936293,142.71,142.67,6.3104]
[1768771155022,10.63296029,142.72,142.67,6.3104]
[1768771155224,5.20936293,142.71,142.67,6.3104]
[1768771155424,10.63296029,142.72,142.67,6.3104]
[1768771155623,5.20935288,142.71,142.67,6.3104]
[1768771155922,10.63296029,142.72,142.67,6.3104]
[1768771156123,5.20935288,142.71,142.67,6.3104]
[1768771156324,10.63296029,142.72,142.67,6.3104]
[1768771156523,5.20934381,142.71,142.67,6.3104]
[1768771156824,10.63296029,142.72,142.67,6.3104]
[1768771157025,5.20934381,142.71,142.67,6.3104]
[1768771157328,10.63296029,142.72,142.67,6.3104]
[1768771159626,10.63296029,142.72,142.67,16.95833914]
[1768771162423,6.3064,142.77,142.69,10.84046589]
[1768771162722,15.88251077,142.76,142.69,10.84046589]
[1768771162928,10.67458995,142.76,142.69,10.84046589]
[1768771163930,10.67458995,142.76,142.7,6.3091]
[1768771165133,10.67458995,142.76,142.7,17.14956589]
[1768771177634,10.67458995,142.76,142.7,10.84046589]
[1768771202779,11.23294201,142.73,142.65,10.93500384]
[1768771202981,12.99309435,142.72,142.65,10.93500384]
[1768771203883,12.99309435,142.72,142.65,17.24600384]
[1768771208484,12.99309435,142.72,142.66,6.3108]
[1768771218488,12.99309435,142.72,142.65,10.93500384]
[1768771218694,12.99309435,142.72,142.67,6.3103]
[1768771221096,11.23294201,142.72,142.67,6.3103]
[1768771258033,11.23294201,142.72,142.66,10.58261871]
[1768771259934,5.21430873,142.71,142.66,10.58261871]
[1768771260134,11.23294201,142.72,142.66,10.58261871]
[1768771260334,5.21430873,142.71,142.66,10.58261871]
[1768771260636,11.23294201,142.72,142.66,10.58261871]
[1768771260937,5.21430518,142.71,142.66,10.58261871]
[1768771261126,11.23294201,142.72,142.66,10.58261871]
[1768771261329,5.21429863,142.71,142.66,10.58261871]
[1768771261534,11.23294201,142.72,142.66,10.58261871]
[1768771261838,5.21429509,142.71,142.66,10.58261871]
[1768771262133,11.23294201,142.72,142.66,10.58261871]
[1768771262338,5.21429509,142.71,142.66,10.58261871]
[1768771262638,11.23294201,142.72,142.66,10.58261871]
[1768771262839,5.21428807,142.71,142.66,16.89341871]
[1768771263038,11.23294201,142.72,142.66,16.89341871]
[1768771263239,5.21429041,142.71,142.66,16.89341871]
[1768771263439,11.23294201,142.72,142.66,16.89341871]
[1768771263641,5.21428643,142.71,142.66,16.89341871]
[1768771263938,11.23294201,142.72,142.66,16.89341871]
[1768771264139,5.21428643,142.71,142.66,16.89341871]
[1768771264439,11.23294201,142.72,142.66,16.89341871]
[1768771264639,5.2142829,142.71,142.66,16.89341871]
[1768771264840,11.23294201,142.72,142.66,16.89341871]
[1768771265042,5.2142829,142.71,142.66,16.89341871]
[1768771265238,11.23294201,142.72,142.66,16.89341871]
[1768771265438,5.21427981,142.71,142.66,16.89341871]
[1768771265638,11.23294201,142.72,142.66,16.89341871]
[1768771265938,5.21427981,142.71,142.66,16.89341871]
[1768771266137,11.23294201,142.72,142.66,16.89341871]
[1768771266338,5.21427981,142.71,142.66,16.89341871]
[1768771266540,11.23294201,142.72,142.66,16.89341871]
[1768771266740,5.21427715,142.71,142.66,16.89341871]
[1768771266940,11.23294201,142.72,142.66,16.89341871]
[1768771267141,5.21427715,142.71,142.66,16.89341871]
[1768771267340,11.23294201,142.72,142.66,16.89341871]
[1768771267638,5.2142749,142.71,142.66,16.89341871]
[1768771267941,11.23294201,142.72,142.66,16.89341871]
[1768771268142,5.2142749,142.71,142.66,16.89341871]
[1768771268340,11.23294201,142.72,142.66,16.89341871]
[1768771268543,5.21435662,142.71,142.66,16.89341871]
[1768771268841,11.23294201,142.72,142.66,16.89341871]
[1768771269035,5.21435662,142.71,142.66,16.89341871]
[1768771269234,11.23294201,142.72,142.66,16.89341871]
[1768771269432,5.21435313,142.71,142.66,16.89341871]
[1768771269638,11.23294201,142.72,142.66,16.89341871]
[1768771269840,5.21435313,142.71,142.66,16.89341871]
[1768771270040,11.23294201,142.72,142.66,16.89341871]
[1768771270237,5.21435313,142.71,142.66,16.89341871]
[1768771270438,11.23294201,142.72,142.66,16.89341871]
[1768771270738,5.21435002,142.71,142.66,16.89341871]
[1768771270940,11.23294201,142.72,142.66,16.89341871]
[1768771271141,5.21435002,142.71,142.67,11.20541219]
[1768771271338,11.23294201,142.72,142.67,11.20541219]
[1768771271542,5.21434247,142.71,142.67,11.20541219]
[1768771271739,11.23294201,142.72,142.67,11.20541219]
[1768771271943,5.21434247,142.71,142.67,11.20541219]
[1768771272142,11.23294201,142.72,142.67,11.20541219]
[1768771272343,5.21434247,142.71,142.67,11.20541219]
[1768771272543,11.23294201,142.72,142.67,11.20541219]
[1768771272739,5.21433803,142.71,142.67,11.20541219]
[1768771272940,11.23294201,142.72,142.67,11.20541219]
[1768771273239,5.21433803,142.71,142.67,11.20541219]
[1768771273443,11.23294201,142.72,142.67,11.20541219]
[1768771273643,5.21379319,142.71,142.67,11.20541219]
[1768771273946,11.23294201,142.72,142.67,11.20541219]
[1768771274145,5.21379319,142.71,142.67,11.20541219]
[1768771274345,11.23294201,142.72,142.67,11.20541219]
[1768771274541,5.21357884,142.71,142.67,11.20541219]
[1768771274844,11.23294201,142.72,142.67,11.20541219]
[1768771275045,5.21357884,142.71,142.67,11.20541219]
[1768771275344,11.23294201,142.72,142.67,11.20541219]
[1768771275538,5.21341584,142.71,142.67,11.20541219]
[1768771275738,11.23294201,142.72,142.67,11.20541219]
[1768771275935,5.21341584,142.71,142.67,11.20541219]
[1768771276139,11.23294201,142.72,142.67,11.20541219]
[1768771276333,5.21341584,142.71,142.67,11.20541219]
[1768771276538,11.23294201,142.72,142.67,11.20541219]
[1768771276735,5.21328276,142.71,142.67,11.20541219]
[1768771277034,11.23294201,142.72,142.67,11.20541219]
[1768771277235,5.21328276,142.71,142.67,11.20541219]
[1768771277443,11.23294201,142.72,142.67,11.20541219]
[1768771277643,5.21317032,142.71,142.67,11.20541219]
[1768771277840,11.23294201,142.72,142.67,11.20541219]
[1768771278045,5.21317032,142.71,142.67,11.20541219]
[1768771278241,11.23294201,142.72,142.67,11.20541219]
[1768771278433,5.21307352,142.71,142.67,11.20541219]
[1768771278637,11.23294201,142.72,142.67,11.20541219]
[1768771288559,152.36898962,142.74,142.64,10.65648545]
[1768771288560,15.98443253,142.71,142.64,10.65648545]
[1768771288750,1.76132925,142.72,142.65,10.65648545]
[1768771288955,5.21292907,142.71,142.65,10.65648545]
[1768771289162,12.53308435,142.73,142.65,10.65648545]
[1768771289363,5.212833,142.72,142.65,10.65648545]
[1768771289566,12.53308435,142.73,142.65,10.65648545]
[1768771289762,5.21275978,142.72,142.66,6.3106]
[1768771290062,12.53308435,142.73,142.66,16.96708545]
[1768771290361,5.21275978,142.72,142.66,16.96708545]
[1768771290557,12.53308435,142.73,142.66,16.96708545]
[1768771290752,5.21275998,142.72,142.66,16.96708545]
[1768771290950,12.53308435,142.73,142.66,16.96708545]
[1768771291156,5.21275998,142.72,142.66,16.96708545]
[1768771291356,12.53308435,142.73,142.66,16.96708545]
[1768771291557,5.21276435,142.72,142.66,16.96708545]
[1768771291758,12.53308435,142.73,142.66,16.96708545]
[1768771291959,5.21276435,142.72,142.66,16.96708545]
[1768771292157,12.53308435,142.73,142.66,16.96708545]
[1768771292456,5.21276561,142.72,142.66,16.96708545]
[1768771292650,12.53308435,142.73,142.66,16.96708545]
[1768771292861,5.21277057,142.72,142.66,16.96708545]
[1768771293059,12.53308435,142.73,142.66,16.96708545]
[1768771293259,5.21276649,142.72,142.66,16.96708545]
[1768771293460,12.53308435,142.73,142.66,16.96708545]
[1768771293660,5.21277518,142.72,142.66,16.96708545]
[1768771293860,12.53308435,142.73,142.66,16.96708545]
[1768771294063,5.21277526,142.72,142.66,16.96708545]
[1768771294255,12.53308435,142.73,142.66,16.96708545]
[1768771294563,5.21279117,142.72,142.66,16.96708545]
[1768771294755,12.53308435,142.73,142.66,16.96708545]
[1768771294958,5.21279117,142.72,142.66,16.96708545]
[1768771295160,12.53308435,142.73,142.66,16.96708545]
[1768771295359,5.21279117,142.72,142.66,16.96708545]
[1768771295560,12.53308435,142.73,142.66,16.96708545]
[1768771295760,5.21281164,142.72,142.66,16.96708545]
[1768771295961,12.53308435,142.73,142.66,16.96708545]
[1768771296162,5.21281164,142.72,142.66,16.96708545]
[1768771296355,12.53308435,142.73,142.66,16.96708545]
[1768771296559,5.2128368,142.72,142.66,16.96708545]
[1768771296865,12.53308435,142.73,142.66,16.96708545]
[1768771297059,5.2128368,142.72,142.66,16.96708545]
[1768771297262,12.53308435,142.73,142.66,16.96708545]
[1768771297559,5.21286681,142.72,142.66,16.96708545]
[1768771297760,12.53308435,142.73,142.66,16.96708545]
[1768771297960,5.21296058,142.72,142.66,16.96708545]
[1768771298160,12.53308435,142.73,142.66,16.96708545]
[1768771298365,5.21296058,142.72,142.66,16.96708545]
[1768771298572,12.53308435,142.73,142.66,16.96708545]
[1768771298866,5.21300813,142.72,142.66,16.96708545]
[1768771299067,12.53308435,142.73,142.66,16.96708545]
[1768771299365,5.21300813,142.72,142.66,16.96708545]
[1768771299555,12.53308435,142.73,142.66,16.96708545]
[1768771299757,5.2131128,142.72,142.66,16.96708545]
[1768771299957,12.53308435,142.73,142.66,16.96708545]
[1768771300167,5.2131128,142.72,142.66,16.96708545]
[1768771300468,12.53308435,142.73,142.66,16.96708545]
[1768771300668,5.21312351,142.72,142.66,16.96708545]
[1768771300872,12.53308435,142.73,142.66,16.96708545]
[1768771301167,5.21312348,142.72,142.66,16.96708545]
[1768771301368,12.53308435,142.73,142.66,16.96708545]
[1768771301670,5.21313443,142.72,142.66,16.96708545]
[1768771301869,12.53308435,142.73,142.66,16.96708545]
[1768771302061,5.21313443,142.72,142.66,16.96708545]
[1768771302362,12.53308435,142.73,142.66,16.96708545]
[1768771302656,5.21313677,142.72,142.66,16.96708545]
[1768771302862,12.53308435,142.73,142.66,16.96708545]
[1768771303061,5.21285546,142.72,142.66,16.96708545]
[1768771303267,12.53308435,142.73,142.66,16.96708545]
[1768771303464,5.21266323,142.72,142.66,16.96708545]
[1768771303664,12.53308435,142.73,142.66,16.96708545]
[1768771303869,5.21266323,142.72,142.66,16.96708545]
[1768771304064,12.53308435,142.73,142.66,16.96708545]
[1768771304264,5.21266323,142.72,142.66,16.96708545]
[1768771304467,12.53308435,142.73,142.66,16.96708545]
[1768771304667,5.21258147,142.72,142.66,16.96708545]
[1768771304961,277.55308435,142.73,142.66,16.96708545]
[1768771305166,5.21258147,142.72,142.66,16.96708545]
[1768771305366,277.55308435,142.73,142.66,16.96708545]
[1768771305667,5.21250256,142.72,142.66,16.96708545]
[1768771305868,277.55308435,142.73,142.66,16.96708545]
[1768771306070,5.21250256,142.72,142.66,16.96708545]
[1768771306270,277.55308435,142.73,142.66,16.96708545]
[1768771306567,5.21244395,142.72,142.66,16.96708545]
[1768771306774,277.55308435,142.73,142.66,16.96708545]
[1768771306971,5.21244395,142.72,142.66,16.96708545]
[1768771307167,277.55308435,142.73,142.66,16.96708545]
[1768771307366,5.21253771,142.72,142.66,16.96708545]
[1768771307564,277.55308435,142.73,142.66,16.96708545]
[1768771307766,5.21254735,142.72,142.66,16.96708545]
[1768771307965,277.55308435,142.73,142.66,16.96708545]
[1768771308163,5.21254735,142.72,142.66,16.96708545]
[1768771308366,277.55308435,142.73,142.66,16.96708545]
[1768771308568,5.21256588,142.72,142.66,16.96708545]
[1768771308767,277.55308435,142.73,142.66,16.96708545]
[1768771309068,5.21351118,142.72,142.66,16.96708545]
[1768771309274,277.55308435,142.73,142.66,16.96708545]
[1768771309475,5.21344255,142.72,142.66,16.96708545]
[1768771309672,277.55308435,142.73,142.66,16.96708545]
[1768771309971,5.21344255,142.72,142.66,16.96708545]
[1768771310172,277.55308435,142.73,142.66,16.96708545]
[1768771310470,5.21344253,142.72,142.66,16.96708545]
[1768771310661,277.55308435,142.73,142.66,16.96708545]
[1768771310866,5.21347452,142.72,142.66,16.96708545]
[1768771311075,277.55308435,142.73,142.66,16.96708545]
[1768771311275,5.21347452,142.72,142.66,16.96708545]
[1768771311475,277.55308435,142.73,142.66,16.96708545]
[1768771311775,5.21341986,142.72,142.66,16.96708545]
[1768771311978,277.55308435,142.73,142.66,16.96708545]
[1768771312172,5.21351363,142.72,142.66,16.96708545]
[1768771312371,277.55308435,142.73,142.66,16.96708545]
[1768771312568,5.21346649,142.72,142.66,16.96708545]
[1768771312772,277.55308435,142.73,142.66,16.96708545]
[1768771312972,5.21346649,142.72,142.66,16.96708545]
[1768771313271,277.55308435,142.73,142.66,16.96708545]
[1768771313471,5.21347279,142.72,142.66,16.96708545]
[1768771313675,277.55308435,142.73,142.66,16.96708545]
[1768771313876,5.21356657,142.72,142.66,16.96708545]
[1768771314076,277.55308435,142.73,142.67,10.12776376]
[1768771314276,5.21356717,142.72,142.67,10.12776376]
[1768771314479,277.55308435,142.73,142.67,10.12776376]
[1768771314679,5.21362154,142.72,142.67,10.12776376]
[1768771314972,277.55308435,142.73,142.67,10.12776376]
[1768771315173,5.21362154,142.72,142.67,10.12776376]
[1768771315373,277.55308435,142.73,142.67,10.12776376]
[1768771315578,5.21368744,142.72,142.67,10.12776376]
[1768771315779,277.55308435,142.73,142.67,10.12776376]
[1768771315980,5.21368744,142.72,142.67,10.12776376]
[1768771316174,277.55308435,142.73,142.67,10.12776376]
[1768771316376,5.21368744,142.72,142.67,10.12776376]
[1768771316574,277.55308435,142.73,142.67,10.12776376]
[1768771316776,5.21376003,142.72,142.67,10.12776376]
[1768771316979,277.55308435,142.73,142.67,10.12776376]
[1768771317280,5.21376003,142.72,142.67,10.12776376]
[1768771317579,277.55308435,142.73,142.67,10.12776376]
[1768771317777,5.21386392,142.72,142.67,10.12776376]
[1768771317978,277.55308435,142.73,142.67,10.12776376]
[1768771318179,5.21385986,142.72,142.67,10.12776376]
[1768771318379,277.55308435,142.73,142.67,10.12776376]
[1768771318582,5.21385422,142.72,142.67,10.12776376]
[1768771318881,277.55308435,142.73,142.67,10.12776376]
[1768771319076,5.21385422,142.72,142.67,10.12776376]
[1768771319270,277.55308435,142.73,142.67,10.12776376]
[1768771319477,5.21384944,142.72,142.67,10.12776376]
[1768771319674,277.55308435,142.73,142.67,10.12776376]
[1768771319888,5.21384944,142.72,142.67,10.12776376]
[1768771320077,277.55308435,142.73,142.67,10.12776376]
[1768771320281,5.21384944,142.72,142.67,10.12776376]
[1768771320481,277.55308435,142.73,142.67,10.12776376]
[1768771320785,5.21383064,142.72,142.67,10.12776376]
[1768771320986,277.55308435,142.73,142.67,10.12776376]
[1768771321186,5.21383064,142.72,142.67,10.12776376]
[1768771321388,277.55308435,142.73,142.67,10.12776376]
[1768771321590,5.213827,142.72,142.67,10.12776376]
[1768771321790,277.55308435,142.73,142.67,10.12776376]
[1768771321990,5.213827,142.72,142.67,10.12776376]
[1768771322192,277.55308435,142.73,142.67,10.12776376]
[1768771322393,5.21382424,142.72,142.67,10.12776376]
[1768771322588,277.55308435,142.73,142.67,10.12776376]
[1768771322784,5.21382424,142.72,142.67,10.12776376]
[1768771322981,12.53308435,142.73,142.67,10.12776376]
[1768771323185,5.21382424,142.72,142.67,10.12776376]
[1768771323393,277.55308435,142.73,142.67,10.12776376]
[1768771323590,5.21382235,142.72,142.67,10.12776376]
[1768771323894,277.55308435,142.73,142.67,10.12776376]
[1768771324085,5.21391554,142.72,142.67,10.12776376]
[1768771324286,277.55308435,142.73,142.67,10.12776376]
[1768771324484,5.21391749,142.72,142.67,10.12776376]
[1768771324689,277.55308435,142.73,142.67,10.12776376]
[1768771324889,5.21382431,142.72,142.67,10.12776376]
[1768771325089,277.55308435,142.73,142.67,10.12776376]
[1768771325286,5.21382431,142.72,142.67,10.12776376]
[1768771325488,277.55308435,142.73,142.67,10.12776376]
[1768771325700,5.21382435,142.72,142.67,10.12776376]
[1768771325898,277.55308435,142.73,142.67,10.12776376]
[1768771326099,5.21382435,142.72,142.67,10.12776376]
[1768771326294,277.55308435,142.73,142.67,10.12776376]
[1768771326499,5.2138244,142.72,142.67,10.12776376]
[1768771326702,277.55308435,142.73,142.67,10.12776376]
[1768771327001,5.2138244,142.72,142.67,10.12776376]
[1768771327202,5.2138244,142.71,142.67,10.12776376]
[1768771327405,277.55308435,142.73,142.67,10.12776376]
[1768771327604,5.21382723,142.72,142.67,10.12776376]
[1768771327902,5.21401361,142.71,142.67,10.12776376]
[1768771328104,9.80112859,142.72,142.67,10.12776376]
[1768771328399,5.21401361,142.71,142.67,10.12776376]
[1768771328703,9.80112859,142.72,142.67,10.12776376]
[1768771329002,5.21389067,142.71,142.67,10.12776376]
[1768771329205,9.80112859,142.72,142.67,10.12776376]
[1768771329403,5.21396371,142.71,142.67,10.12776376]
[1768771329705,9.80112859,142.72,142.67,10.12776376]
[1768771330006,5.21395183,142.71,142.67,10.12776376]
[1768771330304,9.80112859,142.72,142.67,10.12776376]
[1768771330504,5.21392147,142.71,142.67,10.12776376]
[1768771330798,9.80112859,142.72,142.67,10.12776376]
[1768771331004,5.21392147,142.71,142.67,10.12776376]
[1768771331205,9.80112859,142.72,142.67,10.12776376]
[1768771331399,5.2138999,142.71,142.67,10.12776376]
[1768771331600,9.80112859,142.72,142.67,10.12776376]